fUSD/lending_fUSD_20251017
["ID","MTS","AMOUNT","RATE_DAILY","PERIOD"]
[391683433,1760727057460,-8130.724,0.00026382,13]
[391683434,1760727057470,-511.079,0.00026382,13]
[391683435,1760727057479,-500.0,0.00026474,2]
[391683436,1760727057488,-500.0,0.00026474,2]
[391683437,1760727057497,-500.0,0.00026474,2]
[391683438,1760727057508,-500.0,0.00026474,2]
[391683439,1760727057517,-590.46,0.00026527,30]
[391683440,1760727057526,-580.10213637,0.00026574,2]
[391683441,1760727057536,-500.0,0.00026574,2]
[391683442,1760727057545,-500.0,0.00026574,2]
[391683443,1760727057555,-500.0,0.00026574,2]
[391683444,1760727057565,-500.0,0.00026574,2]
[391683445,1760727057575,-500.0,0.00026574,2]
[391683446,1760727057589,-500.0,0.00026574,2]
[391683447,1760727057599,-500.0,0.00026574,2]
[391683448,1760727057609,-500.0,0.00026574,2]
[391683449,1760727057619,-500.0,0.00026574,2]
[391683450,1760727057628,-500.0,0.00026574,2]
[391683451,1760727057638,-500.0,0.00026574,2]
[391683452,1760727057648,-500.0,0.00026574,2]
[391683453,1760727057659,-500.0,0.00026574,2]
[391683454,1760727057669,-500.0,0.00026574,2]
[391683455,1760727057678,-500.0,0.00026574,2]
[391683456,1760727057688,-500.0,0.00026574,2]
[391683457,1760727057698,-1458.72,0.00026575,2]
[391683458,1760727057707,-500.0,0.00026575,2]
[391683459,1760727057716,-153.60955798,0.00026575,2]
[391683460,1760727057727,-500.0,0.00026575,2]
[391683461,1760727057736,-500.0,0.00026575,2]
[391683462,1760727057746,-300.0,0.00026575,9]
[391683463,1760727057755,-500.0,0.00026575,2]
[391683464,1760727057764,-500.0,0.00026575,2]
[391683465,1760727057774,-291.08,0.00026575,2]
[391683466,1760727057784,-647.56,0.00026575,2]
[391683467,1760727057793,-500.0,0.00026575,2]
[391683468,1760727057803,-166.12554215,0.00026575,2]
[391683469,1760727057813,-466.9,0.00026575,2]
[391683470,1760727057822,-500.0,0.00026575,2]
[391683471,1760727057832,-517.52,0.00026575,2]
[391683472,1760727057842,-500.0,0.00026575,2]
[391683473,1760727057851,-500.0,0.00026575,2]
[391683474,1760727057860,-500.0,0.00026575,2]
[391683475,1760727057870,-500.0,0.00026575,2]
[391683476,1760727057879,-180.65,0.00026575,2]
[391683477,1760727057888,-504.16,0.00026575,2]
[391683478,1760727057898,-500.0,0.00026575,2]
[391683479,1760727057907,-376.19,0.00026676,2]
[391683480,1760727057916,-500.0,0.00026748,2]
[391683481,1760727057926,-557.34,0.00026748,2]
[391683482,1760727057935,-500.0,0.00026748,2]
[391683483,1760727057945,-500.0,0.00026748,2]
[391683484,1760727057955,-369.64188355,0.00026821,2]
[391683485,1760727057964,-500.0,0.00026848,2]
[391683486,1760727057974,-361.95,0.00026848,2]
[391683487,1760727057983,-500.0,0.00026848,2]
[391683488,1760727057993,-500.0,0.00026848,2]
[391683489,1760727058003,-500.0,0.00026848,2]
[391683490,1760727058013,-500.0,0.00026848,2]
[391683491,1760727058023,-500.0,0.00026848,2]
[391683492,1760727058033,-500.0,0.00026848,2]
[391683493,1760727058043,-500.0,0.00026848,2]
[391683494,1760727058053,-500.0,0.00026848,2]
[391683495,1760727058063,-500.0,0.00026848,2]
[391683496,1760727058072,-500.0,0.00026848,2]
[391683497,1760727058082,-500.0,0.00026848,2]
[391683498,1760727058091,-500.0,0.00026848,2]
[391683499,1760727058101,-1458.72,0.00026849,2]
[391683500,1760727058110,-500.0,0.00026849,2]
[391683501,1760727058120,-500.0,0.00026849,2]
[391683502,1760727058130,-500.0,0.00026849,2]
[391683503,1760727058139,-420.98,0.00026849,2]
[391683504,1760727058153,-500.0,0.00026849,2]
[391683505,1760727058162,-647.56,0.00026849,2]
[391683506,1760727058172,-500.0,0.00026849,2]
[391683507,1760727058182,-500.0,0.00026849,2]
[391683508,1760727058192,-500.0,0.00026849,2]
[391683509,1760727058201,-500.0,0.00026849,2]
[391683510,1760727058210,-500.0,0.00026849,2]
[391683511,1760727058220,-500.0,0.00026849,2]
[391683512,1760727058230,-504.16,0.00026849,2]
[391683513,1760727058239,-500.0,0.00026849,2]
[391683514,1760727058249,-2500.0,0.00026864,2]
[391683515,1760727058259,-500.0,0.00027022,2]
[391683516,1760727058268,-500.0,0.00027022,2]
[391683517,1760727058278,-500.0,0.00027022,2]
[391683518,1760727058287,-261.78538511,0.0002706,2]
[391683519,1760727058297,-519.65,0.00027122,2]
[391683520,1760727058307,-500.0,0.00027122,2]
[391683521,1760727058316,-277.32,0.00027122,2]
[391683522,1760727058326,-541.67329255,0.00027122,2]
[391683523,1760727058335,-500.0,0.00027122,2]
[391683524,1760727058345,-500.0,0.00027122,2]
[391683525,1760727058354,-500.0,0.00027122,2]
[391683526,1760727058364,-500.0,0.00027122,2]
[391683527,1760727058373,-500.0,0.00027122,2]
[391683528,1760727058383,-500.0,0.00027122,2]
[391683529,1760727058392,-1458.72,0.00027123,2]
[391683530,1760727058401,-500.0,0.00027123,2]
[391683531,1760727058411,-245.91109162,0.00027123,2]
[391683532,1760727058421,-500.0,0.00027123,2]
[391683533,1760727058430,-500.0,0.00027123,2]
[391683534,1760727058439,-647.56,0.00027123,2]
[391683535,1760727058449,-210.63051936,0.00027123,2]
[391683536,1760727058458,-500.0,0.00027123,2]
[391683537,1760727058468,-500.0,0.00027123,2]
[391683538,1760727058477,-500.0,0.00027123,2]
[391683539,1760727058487,-500.0,0.00027123,2]
[391683540,1760727058496,-171.83818409,0.00027123,2]
[391683541,1760727058506,-504.16,0.00027123,2]
[391683542,1760727058515,-500.0,0.00027123,2]
[391683543,1760727058524,-500.0,0.00027296,2]
[391683544,1760727058534,-500.0,0.00027296,2]
[391683545,1760727058544,-500.0,0.00027296,2]
[391683546,1760727058554,-500.0,0.00027396,2]
[391683547,1760727058564,-500.0,0.00027396,2]
[391683548,1760727058574,-500.0,0.00027396,2]
[391683549,1760727058589,-500.0,0.00027396,2]
[391683550,1760727058599,-232.24,0.00027396,2]
[391683551,1760727058609,-500.0,0.00027396,2]
[391683552,1760727058618,-500.0,0.00027396,2]
[391683553,1760727058629,-1458.72,0.00027397,2]
[391683554,1760727058639,-500.0,0.00027397,2]
[391683555,1760727058649,-500.0,0.00027397,2]
[391683556,1760727058660,-411.1109457,0.00027397,2]
[391683557,1760727058669,-647.56,0.00027397,2]
[391683558,1760727058680,-1398.2175,0.00027397,2]
[391683559,1760727058690,-500.0,0.00027397,2]
[391683560,1760727058700,-500.0,0.00027397,2]
[391683561,1760727058709,-500.0,0.00027397,2]
[391683562,1760727058719,-500.0,0.00027397,2]
[391683563,1760727058728,-504.16,0.00027397,2]
[391683564,1760727058738,-211.88,0.00027397,2]
[391683565,1760727058748,-167.86,0.000274,2]
[391683566,1760727058759,-167.58,0.000274,7]
[391683567,1760727058768,-1634.16,0.000274,2]
[391683568,1760727058779,-1634.16,0.000274,2]
[391683569,1760727058788,-1634.16,0.000274,2]
[391683570,1760727058798,-500.0,0.00027412,5]
[391683571,1760727058808,-405.92,0.0002757,17]
[391683572,1760727058818,-500.0,0.0002757,17]
[391683573,1760727058828,-500.0,0.0002757,17]
[391683574,1760727058837,-500.0,0.0002767,17]
[391683575,1760727058847,-500.0,0.0002767,17]
[391683576,1760727058857,-500.0,0.0002767,17]
[391683577,1760727058866,-500.0,0.0002767,17]
[391683578,1760727058875,-500.0,0.0002767,17]
[391683579,1760727058884,-1458.81604892,0.00027671,7]
[391683580,1760727058893,-500.0,0.00027671,17]
[391683581,1760727058903,-500.0,0.00027671,17]
[391683582,1760727058912,-647.56,0.00027671,17]
[391683583,1760727058922,-500.0,0.00027671,14]
[391683584,1760727058931,-500.0,0.00027671,17]
[391683585,1760727058941,-500.0,0.00027671,17]
[391683586,1760727058951,-199.0,0.00027671,7]
[391683587,1760727058960,-500.0,0.00027671,17]
[391683588,1760727058970,-504.16,0.00027671,17]
[391683589,1760727058981,-500.0,0.00027844,17]
[391683590,1760727058991,-500.0,0.00027844,17]
[391683591,1760727059000,-500.0,0.00027944,17]
[391683592,1760727059010,-500.0,0.00027944,17]
[391683593,1760727059019,-500.0,0.00027944,17]
[391683594,1760727059029,-176.35,0.00027944,17]
[391683595,1760727059038,-601.22,0.00027944,17]
[391683596,1760727059047,-500.0,0.00027945,17]
[391683597,1760727059056,-251.56,0.00027945,17]
[391683598,1760727059066,-647.56,0.00027945,17]
[391683599,1760727059075,-473.39,0.00027945,14]
[391683600,1760727059085,-500.0,0.00027945,17]
[391683601,1760727059094,-500.0,0.00027945,17]
[391683602,1760727059103,-199.0,0.00027945,8]
[391683603,1760727059113,-500.0,0.00027945,17]
[391683604,1760727059122,-504.16,0.00027945,17]
[391683605,1760727059131,-286.04,0.00028118,17]
[391683606,1760727059141,-500.0,0.00028118,17]
[391683607,1760727059150,-500.0,0.00028218,17]
[391683608,1760727059160,-500.0,0.00028218,17]
[391683609,1760727059170,-500.0,0.00028218,17]
[391683610,1760727059179,-538.26,0.00028219,17]
[391683611,1760727059188,-647.56,0.00028219,17]
[391683612,1760727059198,-500.0,0.00028219,17]
[391683613,1760727059207,-500.0,0.00028219,17]
[391683614,1760727059217,-199.0,0.00028219,9]
[391683615,1760727059226,-638.65,0.00028219,17]
[391683616,1760727059235,-504.16,0.00028219,17]
[391683617,1760727059245,-500.0,0.00028392,17]
[391683618,1760727059255,-500.0,0.00028492,17]
[391683619,1760727059265,-500.0,0.00028492,17]
[391683620,1760727059274,-377.99,0.00028492,17]
[391683621,1760727059285,-647.56,0.00028493,17]
[391683622,1760727059295,-500.0,0.00028493,17]
[391683623,1760727059304,-500.0,0.00028493,17]
[391683624,1760727059314,-199.0,0.00028493,10]
[391683625,1760727059324,-504.16,0.00028493,17]
[391683626,1760727059334,-198.41,0.00028666,17]
[391683627,1760727059344,-500.0,0.00028766,17]
[391683628,1760727059354,-500.0,0.00028766,17]
[391683629,1760727059364,-647.56,0.00028767,17]
[391683630,1760727059374,-459.34232376,0.00028767,17]
[391683631,1760727059383,-500.0,0.00028767,17]
[391683632,1760727059392,-196.76481376,0.00028767,11]
[391683633,1760727059401,-504.16,0.00028767,17]
[391683634,1760727059411,-169.15,0.00029009,2]
[391683635,1760727059421,-500.0,0.0002904,17]
[391683636,1760727059430,-500.0,0.0002904,17]
[391683637,1760727059439,-647.56,0.00029041,17]
[391683638,1760727059449,-645.1376708,0.00029041,17]
[391683639,1760727059458,-504.16,0.00029041,17]
[391683640,1760727059467,-369.64188355,0.00029084,2]
[391683641,1760727059476,-261.78538511,0.0002929,2]
[391683642,1760727059486,-167.86,0.000293,2]
[391683643,1760727059496,-167.58,0.000293,7]
[391683644,1760727059505,-500.0,0.00029314,17]
[391683645,1760727059515,-500.0,0.00029314,17]
[391683646,1760727059525,-450.0,0.00029315,16]
[391683647,1760727059536,-647.56,0.00029315,17]
[391683648,1760727059545,-504.16,0.00029315,17]
[391683649,1760727059555,-290.31,0.00029435,2]
[391683650,1760727059564,-346.94,0.0002944,14]
[391683651,1760727059573,-500.0,0.00029588,17]
[391683652,1760727059586,-500.0,0.00029588,17]
[391683653,1760727059596,-647.56,0.00029589,17]
[391683654,1760727059606,-504.16,0.00029589,17]
[391683655,1760727059615,-1616.44470566,0.0002982,2]
[391683656,1760727059627,-257.73444915,0.00029822,2]
[391683657,1760727059637,-644.40413803,0.00029822,2]
[391683658,1760727059646,-224.52,0.00029823,2]
[391683659,1760727059657,-330.21964103,0.00029824,2]
[391683660,1760727059667,-261.28813002,0.00029825,2]
[391683661,1760727059676,-330.21964103,0.00029826,2]
[391683662,1760727059686,-155.35655711,0.00029828,2]
[391683663,1760727059696,-322.16806144,0.00029828,2]
[391683664,1760727059705,-239.679118,0.00029831,2]
[391683665,1760727059715,-204.18290362,0.00029834,2]
[391683666,1760727059724,-1195.01560673,0.00029839,2]
[391683667,1760727059734,-330.18942913,0.00029841,2]
[391683668,1760727059744,-220.14642736,0.00029842,2]
[391683669,1760727059754,-9702.9818604,0.00029842,2]
[391683670,1760727059763,-520.6027077,0.00029849,2]
[391683671,1760727059774,-220.14642736,0.00029851,2]
[391683672,1760727059784,-322.16806144,0.00029852,2]
[391683673,1760727059794,-177.55035098,0.00029853,2]
[391683674,1760727059803,-155.04857041,0.00029854,2]
[391683675,1760727059812,-261.28813002,0.00029855,2]
[391683676,1760727059822,-199.66227762,0.00029855,2]
[391683677,1760727059831,-155.04857041,0.00029855,2]
[391683678,1760727059841,-8267.43394288,0.00029859,2]
[391683679,1760727059850,-520.6027077,0.0002986,2]
[391683680,1760727059859,-1616.44470566,0.0002986,2]
[391683681,1760727059869,-500.0,0.00029862,17]
[391683682,1760727059878,-500.0,0.00029862,17]
[391683683,1760727059887,-795.07360086,0.00029863,2]
[391683684,1760727059897,-647.56,0.00029863,17]
[391683685,1760727059906,-504.16,0.00029863,17]
[391683686,1760727059915,-644.40413803,0.00029872,2]
[391683687,1760727059924,-199.74414485,0.00029874,2]
[391683688,1760727059934,-199.74414485,0.00029877,2]
[391683689,1760727059943,-330.18942913,0.00029878,2]
[391683690,1760727059952,-795.07360086,0.00029878,2]
[391683691,1760727059961,-330.21964103,0.0002988,2]
[391683692,1760727059971,-261.05430305,0.00029882,2]
[391683693,1760727059980,-520.6027077,0.00029887,2]
[391683694,1760727059990,-177.55035098,0.00029889,2]
[391683695,1760727060000,-257.73444915,0.00029891,2]
[391683696,1760727060010,-261.05430305,0.00029893,2]
[391683697,1760727060020,-280.92358971,0.00029894,2]
[391683698,1760727060030,-257.73444915,0.000299,2]
[391683699,1760727060040,-177.55035098,0.000299,2]
[391683700,1760727060050,-199.66227762,0.00029901,2]
[391683701,1760727060060,-155.35655711,0.00029901,2]
[391683702,1760727060070,-795.07360086,0.00029904,2]
[391683703,1760727060079,-795.07360086,0.00029908,2]
[391683704,1760727060088,-322.16806144,0.00029909,2]
[391683705,1760727060098,-1195.01560673,0.00029912,2]
[391683706,1760727060107,-280.92358971,0.00029912,2]
[391683707,1760727060117,-9702.9818604,0.00029913,2]
[391683708,1760727060127,-220.14642735,0.00029916,2]
[391683709,1760727060137,-161.08403072,0.00029922,2]
[391683710,1760727060147,-8267.43394288,0.00029923,2]
[391683711,1760727060157,-177.20607223,0.00029925,2]
[391683712,1760727060167,-2318.48916428,0.00029926,2]
[391683713,1760727060178,-257.73444915,0.00029927,2]
[391683714,1760727060187,-3488.47293266,0.00029929,2]
[391683715,1760727060197,-3488.47293266,0.00029929,2]
[391683716,1760727060206,-1195.01560673,0.0002993,2]
[391683717,1760727060216,-220.14642735,0.0002993,2]
[391683718,1760727060226,-330.18942913,0.00029931,2]
[391683719,1760727060235,-1616.44470566,0.00029931,2]
[391683720,1760727060246,-161.08403072,0.00029931,2]
[391683721,1760727060392,-330.21964103,0.00029934,2]
[391683722,1760727060402,-199.74414485,0.00029934,2]
[391683723,1760727060412,-155.04857041,0.00029936,2]
[391683724,1760727060421,-204.18290362,0.00029936,2]
[391683725,1760727060431,-199.66227762,0.00029936,2]
[391683726,1760727060440,-239.679118,0.00029941,2]
[391683727,1760727060450,-8267.43394288,0.00029943,2]
[391683728,1760727060459,-204.18290362,0.00029945,2]
[391683729,1760727060468,-8267.43394288,0.00029949,2]
[391683730,1760727060477,-239.679118,0.00029951,2]
[391683731,1760727060487,-177.20607223,0.00029953,2]
[391683732,1760727060496,-155.35655711,0.00029953,2]
[391683733,1760727060505,-204.18290362,0.00029955,2]
[391683734,1760727060515,-155.35655711,0.00029956,2]
[391683735,1760727060524,-177.55035098,0.00029957,2]
[391683736,1760727060535,-3488.47293266,0.00029959,2]
[391683737,1760727060545,-261.05430305,0.00029962,2]
[391683738,1760727060555,-2318.48916428,0.00029962,2]
[391683739,1760727060565,-220.14642736,0.00029964,2]
[391683740,1760727060575,-520.6027077,0.00029964,2]
[391683741,1760727060589,-239.679118,0.00029965,2]
[391683742,1760727060599,-280.92358971,0.00029966,2]
[391683743,1760727060608,-2318.48916428,0.00029967,2]
[391683744,1760727060617,-330.18942913,0.00029972,2]
[391683745,1760727060628,-177.20607223,0.00029974,2]
[391683746,1760727060639,-199.74414485,0.00029974,2]
[391683747,1760727060648,-220.14642735,0.00029975,2]
[391683748,1760727060659,-3488.47293266,0.00029975,2]
[391683749,1760727060669,-322.16806144,0.00029977,2]
[391683750,1760727060679,-1195.01560673,0.00029979,2]
[391683751,1760727060688,-9702.9818604,0.0002998,2]
[391683752,1760727060697,-2318.48916428,0.00029981,2]
[391683753,1760727060707,-161.08403072,0.00029982,2]
[391683754,1760727060718,-220.14642736,0.00029982,2]
[391683755,1760727060727,-1616.44470566,0.00029984,2]
[391683756,1760727060737,-261.05430305,0.00029984,2]
[391683757,1760727060747,-644.40413803,0.00029985,2]
[391683758,1760727060757,-644.40413803,0.00029986,2]
[391683759,1760727060766,-220.14642735,0.00029986,2]
[391683760,1760727060776,-199.66227762,0.00029987,2]
[391683761,1760727060787,-155.04857041,0.00029989,2]
[391683762,1760727060796,-9702.9818604,0.00029992,2]
[391683763,1760727060806,-261.28813002,0.00029994,2]
[391683764,1760727060815,-177.20607223,0.00029995,2]
[391683765,1760727060824,-280.92358971,0.00029999,2]
[391683766,1760727060834,-261.28813002,0.0003,2]
[391683767,1760727060843,-161.08403072,0.0003,2]
[391683768,1760727060852,-500.0,0.00030135,17]
[391683769,1760727060862,-500.0,0.00030135,17]
[391683770,1760727060871,-500.0,0.00030135,17]
[391683771,1760727060881,-500.0,0.00030136,17]
[391683772,1760727060891,-500.0,0.00030136,17]
[391683773,1760727060900,-647.56,0.00030136,17]
[391683774,1760727060910,-2796.435,0.00030136,3]
[391683775,1760727060919,-504.16,0.00030136,17]
[391683776,1760727060929,-158.0,0.00030137,20]
[391683777,1760727060938,-500.0,0.0003041,10]
[391683778,1760727060948,-500.0,0.0003041,17]
[391683779,1760727060957,-500.0,0.0003041,17]
[391683780,1760727060967,-647.56,0.0003041,17]
[391683781,1760727060976,-504.16,0.0003041,17]
[391683782,1760727060985,-500.0,0.00030684,10]
[391683783,1760727060995,-562.36,0.00030684,17]
[391683784,1760727061004,-500.0,0.00030684,17]
[391683785,1760727061014,-647.56,0.00030684,17]
[391683786,1760727061023,-504.16,0.00030684,17]
[391683787,1760727061034,-500.0,0.00030958,10]
[391683788,1760727061043,-568.33,0.00030958,17]
[391683789,1760727061053,-647.65,0.00030958,17]
[391683790,1760727061062,-504.32,0.00030958,17]
[391683791,1760727061071,-153.0,0.00031,120]
[391683792,1760727061080,-150.0,0.000312,30]
[391683793,1760727061090,-500.0,0.00031232,10]
[391683794,1760727061099,-369.64188355,0.00031348,2]
[391683795,1760727061109,-1000.0,0.0003139,11]
[391683796,1760727061118,-1000.0,0.0003139,11]
[391683797,1760727061127,-1000.0,0.0003139,11]
[391683798,1760727061137,-1000.0,0.0003139,11]
[391683799,1760727061146,-1000.0,0.0003139,11]
[391683800,1760727061155,-1000.0,0.0003139,11]
[391683801,1760727061165,-1000.0,0.0003139,11]
[391683802,1760727061175,-1000.0,0.0003139,11]
[391683803,1760727061184,-1713.92,0.00031426,2]
[391683804,1760727061197,-500.0,0.00031506,10]
[391683805,1760727061207,-590.46,0.00031508,30]
[391683806,1760727061216,-261.78538511,0.0003152,2]
[391683807,1760727061225,-957.0,0.00031586,2]
[391683808,1760727061235,-169.15,0.00031646,2]
[391683809,1760727061245,-167.86,0.000317,2]
[391683810,1760727061255,-167.58,0.000317,30]
[391683811,1760727061265,-150.0,0.00031772,120]
[391683812,1760727061274,-500.0,0.0003178,10]
[391683813,1760727061284,-500.0,0.00031841,15]
[391683814,1760727061293,-600.0,0.000319,11]
[391683815,1760727061303,-957.0,0.00031911,2]
[391683816,1760727061312,-2786.0,0.00032023,2]
[391683817,1760727061322,-2786.0,0.0003203,7]
[391683818,1760727061331,-500.0,0.00032054,10]
[391683819,1760727061341,-600.0,0.00032054,23]
[391683820,1760727061350,-2786.0,0.00032061,2]
[391683821,1760727061359,-500.0,0.00032094,17]
[391683822,1760727061369,-503.99679286,0.00032095,17]
[391683823,1760727061378,-2786.0,0.00032096,2]
[391683824,1760727061387,-500.0,0.00032115,15]
[391683825,1760727061397,-11421.9573103,0.00032132,2]
[391683826,1760727061406,-19255.6290719,0.00032142,2]
[391683827,1760727061416,-450.0,0.00032172,30]
[391683828,1760727061425,-957.0,0.00032237,2]
[391683829,1760727061434,-153.0,0.000323,120]
[391683830,1760727061443,-500.0,0.00032328,10]
[391683831,1760727061452,-500.0,0.00032389,15]
[391683832,1760727061461,-957.0,0.00032563,2]
[391683833,1760727061471,-769.20453676,0.00032563,2]
[391683834,1760727061480,-500.0,0.00032602,10]
[391683835,1760727061489,-2786.0,0.00032625,2]
[391683836,1760727061498,-500.0,0.00032663,15]
[391683837,1760727061508,-424.57314276,0.00032673,2]
[391683838,1760727061517,-150.0,0.00032773,120]
[391683839,1760727061526,-2786.0,0.00032812,7]
[391683840,1760727061536,-500.0,0.00032849,2]
[391683841,1760727061546,-500.0,0.00032876,10]
[391683842,1760727061556,-4194.6525,0.00032876,4]
[391683843,1760727061565,-245.67496985,0.00032877,2]
[391683844,1760727061575,-957.0,0.00032888,2]
[391683845,1760727061587,-500.0,0.00032937,30]
[391683846,1760727061597,-2786.0,0.00032993,2]
[391683847,1760727061606,-526.370776,0.00033,8]
[391683848,1760727061615,-11421.9573103,0.00033008,2]
[391683849,1760727061628,-19255.6290719,0.00033018,2]
[391683850,1760727061637,-259.5693337,0.00033065,2]
[391683851,1760727061647,-5849.9616097,0.00033065,2]
[391683852,1760727061657,-11421.9573103,0.00033075,2]
[391683853,1760727061667,-19255.6290719,0.00033085,2]
[391683854,1760727061676,-11421.9573103,0.00033091,2]
[391683855,1760727061686,-2787.0,0.00033095,2]
[391683856,1760727061695,-19255.6290719,0.00033102,2]
[391683857,1760727061705,-11421.9573103,0.00033102,2]
[391683858,1760727061715,-19255.6290719,0.00033111,2]
[391683859,1760727061724,-11421.9573103,0.00033111,2]
[391683860,1760727061734,-500.0,0.00033121,17]
[391683861,1760727061743,-311.86,0.00033121,17]
[391683862,1760727061754,-500.0,0.00033121,17]
[391683863,1760727061763,-500.0,0.00033121,17]
[391683864,1760727061773,-3001.45703176,0.00033121,2]
[391683865,1760727061783,-500.0,0.00033121,17]
[391683866,1760727061793,-33121.9923,0.00033121,2]
[391683867,1760727061803,-1000.0,0.00033121,2]
[391683868,1760727061812,-500.0,0.0003315,10]
[391683869,1760727061821,-11421.9573103,0.00033155,2]
[391683870,1760727061831,-376.19,0.00033165,2]
[391683871,1760727061840,-2786.0,0.00033175,2]
[391683872,1760727061849,-11421.9573103,0.00033192,2]
[391683873,1760727061859,-19255.6290719,0.00033201,2]
[391683874,1760727061868,-2786.0,0.00033202,2]
[391683875,1760727061877,-500.0,0.00033211,30]
[391683876,1760727061886,-957.0,0.00033214,2]
[391683877,1760727061895,-2786.0,0.00033389,7]
[391683878,1760727061905,-500.0,0.00033424,10]
[391683879,1760727061914,-2786.0,0.00033435,2]
[391683880,1760727061923,-500.0,0.00033485,30]
[391683881,1760727061933,-11421.9573103,0.0003352,2]
[391683882,1760727061943,-19255.6290719,0.00033529,2]
[391683883,1760727061952,-957.0,0.0003354,2]
[391683884,1760727061961,-150.0,0.00033552,120]
[391683885,1760727061970,-2787.0,0.00033557,2]
[391683886,1760727061979,-153.0,0.000336,120]
[391683887,1760727061988,-369.64188355,0.00033612,2]
[391683888,1760727061998,-500.0,0.00033698,10]
[391683889,1760727062007,-2787.0,0.00033739,2]
[391683890,1760727062016,-261.78538511,0.0003375,2]
[391683891,1760727062025,-500.0,0.00033759,30]
[391683892,1760727062037,-405.9,0.000338,60]
[391683893,1760727062046,-11421.9573103,0.00033834,2]
[391683894,1760727062056,-299.99,0.00033844,30]
[391683895,1760727062066,-305.7,0.00033844,2]
[391683896,1760727062076,-999.99,0.00033844,2]
[391683897,1760727062086,-3345.51,0.00033844,2]
[391683898,1760727062096,-150.99,0.00033844,30]
[391683899,1760727062106,-9999.99,0.00033844,2]
[391683900,1760727062115,-1134.69,0.00033844,2]
[391683901,1760727062124,-150.99,0.00033844,2]
[391683902,1760727062133,-11421.9573103,0.00033942,2]
[391683903,1760727062142,-500.0,0.00033951,17]
[391683904,1760727062152,-19255.6290719,0.00033951,2]
[391683905,1760727062162,-2790.0,0.00033958,7]
[391683906,1760727062171,-500.0,0.00033972,10]
[391683907,1760727062180,-2786.0,0.00033978,2]
[391683908,1760727062190,-11421.9573103,0.00033981,2]
[391683909,1760727062199,-19255.6290719,0.00033991,2]
[391683910,1760727062208,-2786.0,0.00034001,2]
[391683911,1760727062217,-2786.0,0.00034001,2]
[391683912,1760727062227,-546.25,0.00034033,30]
[391683913,1760727062236,-11421.9573103,0.00034114,2]
[391683914,1760727062245,-19255.6290719,0.00034124,2]
[391683915,1760727062254,-11421.9573103,0.00034124,2]
[391683916,1760727062264,-2050.0,0.00034134,2]
[391683917,1760727062273,-1267.0,0.00034134,2]
[391683918,1760727062282,-749.0,0.00034134,2]
[391683919,1760727062291,-3408.0,0.00034134,2]
[391683920,1760727062301,-572.819,0.00034134,2]
[391683921,1760727062310,-1589.0,0.00034134,2]
[391683922,1760727062319,-1310.0,0.00034134,2]
[391683923,1760727062329,-605.0,0.00034134,2]
[391683924,1760727062339,-826.0,0.00034134,2]
[391683925,1760727062348,-3356.0,0.00034134,2]
[391683926,1760727062357,-557.0,0.00034134,2]
[391683927,1760727062367,-6445.0,0.00034134,2]
[391683928,1760727062376,-500.0,0.00034246,10]
[391683929,1760727062385,-2786.0,0.00034424,2]
[391683930,1760727062395,-500.0,0.0003452,10]
[391683931,1760727062404,-11421.9573103,0.00034551,2]
[391683932,1760727062413,-19255.6290719,0.0003456,2]